lending/lending_fUSD_20250425
["ID","MTS","AMOUNT","RATE_DAILY","PERIOD"]
[358962080,1745591446727,-500.0,0.00035616,2]
[358962082,1745591446741,-500.0,0.00035616,2]
[358962085,1745591446755,-500.0,0.00035616,2]
[358962087,1745591446769,-500.0,0.00035616,2]
[358962090,1745591446783,-500.0,0.00035616,2]
[358962092,1745591446797,-500.0,0.00035616,2]
[358962095,1745591446812,-500.0,0.00035616,2]
[358962097,1745591446825,-500.0,0.00035616,2]
[358962100,1745591446840,-500.0,0.00035616,2]
[358962102,1745591446853,-500.0,0.00035616,2]
[358962105,1745591446868,-500.0,0.00035616,2]
[358962108,1745591446881,-500.0,0.00035616,2]
[358962110,1745591446896,-500.0,0.00035616,2]
[358962113,1745591446910,-781.6,0.00035616,2]
[358962115,1745591446924,-500.0,0.00035616,2]
[358962118,1745591446938,-500.0,0.00035616,2]
[358962120,1745591446952,-500.0,0.00035616,2]
[358962123,1745591446967,-500.0,0.00035616,2]
[358962125,1745591446981,-500.0,0.00035616,2]
[358962128,1745591446995,-513.63574784,0.00035616,2]
[358962130,1745591447009,-500.0,0.00035616,2]
[358962133,1745591447023,-739.27,0.00035616,2]
[358962135,1745591447037,-500.0,0.00035616,2]
[358962138,1745591447051,-725.86,0.00035616,2]
[358962140,1745591447065,-500.0,0.00035616,2]
[358962143,1745591447079,-500.0,0.00035616,2]
[358962145,1745591447094,-500.0,0.00035616,2]
[358962148,1745591447108,-758.21,0.00035616,2]
[358962150,1745591447122,-500.0,0.00035616,2]
[358962153,1745591447136,-500.0,0.00035616,2]
[358962155,1745591447150,-500.0,0.00035616,2]
[358962158,1745591447164,-635.31,0.00035616,2]
[358962160,1745591447178,-500.0,0.00035616,2]
[358962163,1745591447193,-838.51,0.00035616,2]
[358962165,1745591447207,-500.0,0.00035616,2]
[358962168,1745591447220,-1143.36,0.00035616,2]
[358962170,1745591447235,-500.0,0.00035616,2]
[358962173,1745591447249,-500.0,0.00035616,2]
[358962175,1745591447266,-530.8452842,0.00035616,2]
[358962178,1745591447280,-500.0,0.00035616,2]
[358962180,1745591447294,-500.0,0.00035616,2]
[358962183,1745591447308,-504.27516635,0.00035616,2]
[358962185,1745591447322,-500.0,0.00035616,2]
[358962188,1745591447337,-500.0,0.00035616,2]
[358962190,1745591447351,-500.0,0.00035616,2]
[358962193,1745591447365,-500.0,0.00035616,2]
[358962195,1745591447379,-500.0,0.00035616,2]
[358962198,1745591447393,-509.89299915,0.00035616,2]
[358962200,1745591447407,-827.81,0.00035616,2]
[358962203,1745591447422,-500.0,0.00035616,2]
[358962205,1745591447436,-500.0,0.00035616,2]
[358962208,1745591447449,-924.87,0.00035616,2]
[358962210,1745591447463,-500.0,0.00035616,2]
[358962212,1745591447477,-500.0,0.00035616,2]
[358962213,1745591447491,-500.0,0.00035616,2]
[358962216,1745591447506,-516.15,0.00035616,2]
[358962218,1745591447523,-500.0,0.00035616,2]
[358962219,1745591447537,-891.53,0.00035616,2]
[358962221,1745591447552,-518.09513575,0.00035616,2]
[358962223,1745591447567,-500.0,0.00035616,2]
[358962225,1745591447581,-525.81,0.00035616,2]
[358962227,1745591447596,-500.0,0.00035616,2]
[358962229,1745591447610,-500.0,0.00035616,2]
[358962231,1745591447624,-500.0,0.00035616,2]
[358962233,1745591447638,-500.0,0.00035616,2]
[358962235,1745591447652,-795.55,0.00035616,2]
[358962237,1745591447666,-500.0,0.00035616,2]
[358962239,1745591447680,-500.0,0.00035616,2]
[358962241,1745591447693,-500.0,0.00035616,2]
[358962243,1745591447708,-500.0,0.00035616,2]
[358962245,1745591447721,-500.0,0.00035616,2]
[358962247,1745591447735,-500.0,0.00035616,2]
[358962249,1745591447748,-500.0,0.00035616,2]
[358962252,1745591447762,-500.0,0.00035616,2]
[358962253,1745591447776,-500.0,0.00035616,2]
[358962255,1745591447790,-500.0,0.00035616,2]
[358962257,1745591447803,-963.78,0.00035616,2]
[358962259,1745591447816,-533.88494149,0.00035616,2]
[358962261,1745591447829,-500.0,0.00035616,2]
[358962264,1745591447842,-500.0,0.00035616,2]
[358962266,1745591447855,-500.0,0.00035616,2]
[358962268,1745591447870,-500.0,0.00035616,2]
[358962270,1745591447884,-500.0,0.00035616,2]
[358962272,1745591447898,-999.31,0.00035616,2]
[358962274,1745591447912,-521.78536389,0.00035616,2]
[358962276,1745591447926,-500.0,0.00035616,2]
[358962278,1745591447939,-500.0,0.00035616,2]
[358962280,1745591447953,-500.0,0.00035616,2]
[358962282,1745591447966,-500.0,0.00035616,2]
[358962284,1745591447980,-500.0,0.00035616,2]
[358962286,1745591447993,-500.0,0.00035616,2]
[358962288,1745591448007,-500.0,0.00035616,2]
[358962291,1745591448021,-500.0,0.00035616,2]
[358962293,1745591448035,-500.0,0.00035616,2]
[358962295,1745591448049,-1036.7,0.00035616,2]
[358962297,1745591448062,-529.4329965,0.00035616,2]
[358962299,1745591448076,-496.15403073,0.00035616,2]
[358962301,1745591448090,-500.0,0.00035616,2]
[358962303,1745591448103,-772.19,0.00035616,2]
[358962305,1745591448118,-500.0,0.00035616,2]
[358962307,1745591448128,-500.0,0.00035616,2]
[358962308,1745591448137,-500.0,0.00035616,2]
[358962310,1745591448147,-500.0,0.00035616,2]
[358962312,1745591448157,-500.0,0.00035616,2]
[358962314,1745591448166,-546.47,0.00035616,2]
[358962315,1745591448175,-500.0,0.00035616,2]
[358962317,1745591448185,-1134.13,0.00035616,2]
[358962319,1745591448194,-573.9869886,0.00035616,2]
[358962321,1745591448204,-500.0,0.00035616,2]
[358962322,1745591448213,-500.0,0.00035616,2]
[358962324,1745591448223,-500.0,0.00035616,2]
[358962360,1745591448793,-767.66,0.00035616,2]
[358962363,1745591448902,-500.0,0.00035616,2]
[358962369,1745591448948,-500.0,0.00035616,2]
[358962371,1745591448963,-965.5,0.00035616,2]
[358962374,1745591448973,-1144.91,0.00035616,2]
[358962375,1745591448983,-500.0,0.00035616,2]
[358962378,1745591448992,-500.0,0.00035616,2]
[358962380,1745591449002,-500.0,0.00035616,2]
[358962382,1745591449011,-500.0,0.00035616,2]
[358962384,1745591449021,-500.0,0.00035616,2]
[358962386,1745591449031,-500.0,0.00035616,2]
[358962388,1745591449041,-500.0,0.00035616,2]
[358962389,1745591449050,-500.0,0.00035616,2]
[358962392,1745591449060,-500.0,0.00035616,2]
[358962394,1745591449071,-500.0,0.00035616,2]
[358962396,1745591449080,-500.0,0.00035616,2]
[358962398,1745591449090,-500.0,0.00035616,2]
[358962400,1745591449100,-500.0,0.00035616,2]
[358962402,1745591449110,-500.0,0.00035616,2]
[358962403,1745591449120,-500.0,0.00035616,2]
[358962406,1745591449130,-209.21241495,0.00035616,2]
[358962408,1745591449139,-500.0,0.00035616,2]
[358962410,1745591449149,-500.0,0.00035616,2]
[358962412,1745591449159,-500.0,0.00035616,2]
[358962414,1745591449170,-500.0,0.00035616,2]
[358962416,1745591449180,-500.0,0.00035616,2]
[358962418,1745591449189,-500.0,0.00035616,2]
[358962420,1745591449199,-500.0,0.00035616,2]
[358962422,1745591449208,-500.0,0.00035616,2]
[358962424,1745591449218,-500.0,0.00035616,2]
[358962426,1745591449228,-500.0,0.00035616,2]
[358962428,1745591449237,-500.0,0.00035616,2]
[358962430,1745591449247,-632.23,0.00035616,2]
[358962432,1745591449257,-500.0,0.00035616,2]
[358962434,1745591449271,-576.87411685,0.00035616,2]
[358962436,1745591449280,-500.0,0.00035616,2]
[358962438,1745591449290,-603.47917906,0.00035616,2]
[358962440,1745591449299,-500.0,0.00035616,2]
[358962442,1745591449311,-792.2,0.00035616,2]
[358962444,1745591449321,-552.12178339,0.00035616,2]
[358962446,1745591449330,-500.0,0.00035616,2]
[358962448,1745591449341,-520.45,0.00035616,2]
[358962450,1745591449350,-500.0,0.00035616,2]
[358962452,1745591449360,-500.0,0.00035616,2]
[358962454,1745591449370,-500.0,0.00035616,2]
[358962456,1745591449382,-500.0,0.00035616,2]
[358962458,1745591449391,-500.0,0.00035616,2]
[358962460,1745591449401,-500.0,0.00035616,2]
[358962462,1745591449411,-1196.14,0.00035616,2]
[358962464,1745591449421,-500.0,0.00035616,2]
[358962466,1745591449431,-1091.99,0.00035616,2]
[358962469,1745591449441,-593.95,0.00035616,2]
[358962471,1745591449451,-500.0,0.00035616,2]
[358962472,1745591449460,-514.19534471,0.00035616,2]
[358962475,1745591449470,-500.0,0.00035616,2]
[358962476,1745591449480,-698.58,0.00035616,2]
[358962478,1745591449490,-500.0,0.00035616,2]
[358962481,1745591449500,-500.0,0.00035616,2]
[358962483,1745591449509,-500.0,0.00035616,2]
[358962484,1745591449521,-790.34,0.00035616,2]
[358962487,1745591449530,-500.0,0.00035616,2]
[358962488,1745591449540,-500.0,0.00035616,2]
[358962491,1745591449550,-500.0,0.00035616,2]
[358962493,1745591449560,-500.0,0.00035616,2]
[358962494,1745591449570,-549.94582558,0.00035616,2]
[358962497,1745591449579,-500.0,0.00035616,2]
[358962498,1745591449589,-847.84,0.00035616,2]
[358962501,1745591449598,-500.0,0.00035616,2]
[358962502,1745591449608,-500.0,0.00035616,2]
[358962504,1745591449619,-500.0,0.00035616,2]
[358962506,1745591449629,-500.0,0.00035616,2]
[358962509,1745591449639,-498.02399997,0.00035616,2]
[358962511,1745591449649,-526.56769593,0.00035616,2]
[358962513,1745591449659,-653.59,0.00035616,2]
[358962515,1745591449669,-500.0,0.00035616,2]
[358962517,1745591449679,-500.0,0.00035616,2]
[358962519,1745591449688,-500.0,0.00035616,2]
[358962521,1745591449698,-500.0,0.00035616,2]
[358962523,1745591449707,-996.74,0.00035616,2]
[358962525,1745591449717,-1877.59,0.00035616,2]
[358962527,1745591449726,-500.0,0.00035616,2]
[358962529,1745591449736,-500.0,0.00035616,2]
[358962531,1745591449745,-500.0,0.00035616,2]
[358962533,1745591449755,-500.0,0.00035616,2]
[358962535,1745591449766,-500.0,0.00035616,2]
[358962537,1745591449776,-1232.12,0.00035616,2]
[358962539,1745591449786,-500.0,0.00035616,2]
[358962541,1745591449795,-515.2780227,0.00035616,2]
[358962543,1745591449805,-520.78,0.00035616,2]
[358962545,1745591449814,-1063.52,0.00035616,2]
[358962547,1745591449824,-500.0,0.00035616,2]
[358962549,1745591449833,-500.0,0.00035616,2]
[358962551,1745591449843,-500.0,0.00035616,2]
[358962553,1745591449852,-763.67,0.00035616,2]
[358962555,1745591449861,-772.01,0.00035616,2]
[358962557,1745591449870,-500.0,0.00035616,2]
[358962559,1745591449879,-500.0,0.00035616,2]
[358962561,1745591449888,-500.0,0.00035616,2]
[358962563,1745591449898,-500.0,0.00035616,2]
[358962565,1745591449907,-500.0,0.00035616,2]
[358962567,1745591449916,-500.0,0.00035616,2]
[358962569,1745591449925,-500.0,0.00035616,2]
[358962571,1745591449934,-801.52,0.00035616,2]
[358962573,1745591449945,-500.0,0.00035616,2]
[358962575,1745591449955,-648.89,0.00035616,2]
[358962577,1745591449964,-500.0,0.00035616,2]
[358962579,1745591449974,-500.0,0.00035616,2]
[358962581,1745591449983,-500.0,0.00035616,2]
[358962583,1745591449992,-500.0,0.00035616,2]
[358962585,1745591450001,-893.31,0.00035616,2]
[358962587,1745591450011,-464.99698593,0.00035616,2]
[358962589,1745591450022,-1679.11,0.00035616,2]
[358962591,1745591450031,-611.88260411,0.00035616,2]
[358962593,1745591450040,-500.0,0.00035616,2]
[358962595,1745591450050,-500.0,0.00035616,2]
[358962597,1745591450059,-500.0,0.00035616,2]
[358962599,1745591450068,-500.0,0.00035616,2]
[358962601,1745591450077,-500.0,0.00035616,2]
[358962603,1745591450087,-500.0,0.00035616,2]
[358962605,1745591450096,-500.0,0.00035616,2]
[358962607,1745591450105,-500.0,0.00035616,2]
[358962609,1745591450114,-500.0,0.00035616,2]
[358962611,1745591450123,-500.0,0.00035616,2]
[358962613,1745591450132,-517.92402145,0.00035616,2]
[358962616,1745591450142,-500.0,0.00035616,2]
[358962618,1745591450157,-500.0,0.00035616,2]
[358962620,1745591450166,-500.0,0.00035616,2]
[358962622,1745591450176,-806.99,0.00035616,2]
[358962624,1745591450186,-500.0,0.00035616,2]
[358962626,1745591450196,-500.0,0.00035616,2]
[358962628,1745591450206,-500.0,0.00035616,2]
[358962630,1745591450216,-500.0,0.00035616,2]
[358962632,1745591450226,-500.0,0.00035616,2]
[358962634,1745591450236,-500.0,0.00035616,2]
[358962636,1745591450245,-303.2467606,0.00035616,2]
[358962638,1745591450256,-500.0,0.00035616,2]
[358962641,1745591450270,-500.0,0.00035616,2]
[358962643,1745591450279,-500.0,0.00035616,2]
[358962645,1745591450288,-500.0,0.00035616,2]
[358962647,1745591450298,-519.93809644,0.00035616,2]
[358962649,1745591450309,-1431.72,0.00035616,2]
[358962651,1745591450319,-500.0,0.00035616,2]
[358962653,1745591450328,-500.0,0.00035616,2]
[358962655,1745591450340,-500.0,0.00035616,2]
[358962657,1745591450349,-500.0,0.00035616,2]
[358962659,1745591450359,-500.0,0.00035616,2]
[358962661,1745591450369,-500.0,0.00035616,2]
[358962663,1745591450379,-1133.74,0.00035616,2]
[358962665,1745591450388,-500.0,0.00035616,2]
[358962667,1745591450398,-500.0,0.00035616,2]
[358962669,1745591450409,-500.0,0.00035616,2]
[358962671,1745591450419,-500.0,0.00035616,2]
[358962673,1745591450429,-635.52,0.00035616,2]
[358962675,1745591450439,-500.0,0.00035616,2]
[358962677,1745591450449,-500.0,0.00035616,2]
[358962679,1745591450458,-500.0,0.00035616,2]
[358962682,1745591450468,-515.10608183,0.00035616,2]
[358962684,1745591450478,-570.39,0.00035616,2]
[358962686,1745591450488,-156.13934076,0.00035616,2]
[358962688,1745591450497,-500.0,0.00035616,2]
[358962690,1745591450507,-500.0,0.00035616,2]
[358962692,1745591450517,-500.0,0.00035616,2]
[358962694,1745591450527,-808.7,0.00035616,2]
[358962696,1745591450537,-500.0,0.00035616,2]
[358962698,1745591450547,-500.0,0.00035616,2]
[358962700,1745591450557,-500.0,0.00035616,2]
[358962702,1745591450566,-500.46,0.00035616,2]
[358962704,1745591450575,-531.61760518,0.00035616,2]
[358962706,1745591450585,-500.0,0.00035616,2]
[358962709,1745591450600,-500.0,0.00035616,2]
[358962711,1745591450610,-500.0,0.00035616,2]
[358962713,1745591450620,-500.0,0.00035616,2]
[358962715,1745591450629,-514.31014724,0.00035616,2]
[358962717,1745591450639,-500.0,0.00035616,2]
[358962719,1745591450649,-542.03,0.00035616,2]
[358962721,1745591450659,-500.0,0.00035616,2]
[358962723,1745591450669,-1811.85,0.00035616,2]
[358962725,1745591450679,-535.02,0.00035616,2]
[358962727,1745591450689,-845.41,0.00035616,2]
[358962730,1745591450699,-500.0,0.00035616,2]
[358962732,1745591450708,-500.0,0.00035616,2]
[358962734,1745591450718,-500.0,0.00035616,2]
[358962736,1745591450728,-500.0,0.00035616,2]
[358962738,1745591450737,-708.04,0.00035616,2]
[358962740,1745591450747,-500.0,0.00035616,2]
[358962742,1745591450756,-513.8382107,0.00035616,2]
[358962744,1745591450767,-2765.1,0.00035616,2]
[358962746,1745591450778,-500.0,0.00035616,2]
[358962748,1745591450787,-500.0,0.00035616,2]
[358962750,1745591450797,-500.0,0.00035616,2]
[358962752,1745591450807,-531.43149761,0.00035616,2]
[358962754,1745591450817,-500.0,0.00035616,2]
[358962756,1745591450827,-1015.4,0.00035616,2]
[358962758,1745591450836,-860.36,0.00035616,2]
[358962760,1745591450846,-509.3990217,0.00035616,2]
[358962762,1745591450856,-639.67239413,0.00035616,2]
[358962764,1745591450865,-500.0,0.00035616,2]
[358962767,1745591450875,-766.58,0.00035616,2]
[358962769,1745591450885,-500.0,0.00035616,2]
[358962771,1745591450895,-500.0,0.00035616,2]
[358962773,1745591450906,-1970.6,0.00035616,2]
[358962774,1745591450915,-500.0,0.00035616,2]
[358962775,1745591450925,-530.27331446,0.00035616,2]
[358962776,1745591450935,-500.0,0.00035616,2]
[358962777,1745591450944,-1085.32,0.00035616,2]
[358962779,1745591450954,-500.0,0.00035616,2]
[358962781,1745591450964,-500.0,0.00035616,2]
[358962783,1745591450974,-500.0,0.00035616,2]
[358962784,1745591450986,-500.0,0.00035616,2]
[358962785,1745591450996,-500.0,0.00035616,2]
[358962786,1745591451005,-469.47269658,0.00035616,2]
[358962787,1745591451015,-500.0,0.00035616,2]
[358962788,1745591451026,-500.0,0.00035616,2]
[358962789,1745591451041,-500.0,0.00035616,2]
[358962790,1745591451051,-500.0,0.00035616,2]
[358962791,1745591451060,-500.0,0.00035616,2]
[358962792,1745591451070,-500.0,0.00035616,2]
[358962793,1745591451079,-537.49,0.00035616,2]
[358962794,1745591451090,-500.0,0.00035616,2]
[358962795,1745591451100,-542.14184706,0.00035616,2]
[358962796,1745591451111,-500.0,0.00035616,2]
[358962797,1745591451121,-500.0,0.00035616,2]
[358962798,1745591451131,-500.0,0.00035616,2]
[358962799,1745591451141,-500.0,0.00035616,2]
[358962800,1745591451151,-513.73,0.00035616,2]
[358962801,1745591451162,-500.0,0.00035616,2]
[358962802,1745591451173,-500.0,0.00035616,2]
[358962803,1745591451184,-1170.9,0.00035616,2]
[358962804,1745591451194,-532.80945532,0.00035616,2]
[358962805,1745591451204,-563.92463906,0.00035616,2]
[358962806,1745591451214,-500.0,0.00035616,2]
[358962807,1745591451224,-500.0,0.00035616,2]
[358962808,1745591451235,-574.02938754,0.00035616,2]
[358962809,1745591451245,-508.41,0.00035616,2]
[358962810,1745591451256,-500.0,0.00035616,2]
[358962811,1745591451269,-957.68,0.00035616,2]
[358962812,1745591451280,-449.89667667,0.00035616,2]
[358962813,1745591451291,-544.17138551,0.00035616,2]
[358962814,1745591451301,-500.0,0.00035616,2]
[358962815,1745591451313,-500.0,0.00035616,2]
[358962816,1745591451324,-1490.79,0.00035616,2]
[358962817,1745591451335,-1186.09,0.00035616,2]
[358962818,1745591451346,-500.0,0.00035616,2]
[358962819,1745591451356,-500.0,0.00035616,2]
[358962820,1745591451366,-500.0,0.00035616,2]
[358962821,1745591451376,-500.0,0.00035616,2]
[358962822,1745591451386,-500.0,0.00035616,2]
[358962823,1745591451398,-547.41124606,0.00035616,2]
[358962824,1745591451408,-543.83,0.00035616,2]
[358962825,1745591451418,-1024.21,0.00035616,2]
[358962826,1745591451429,-558.86434426,0.00035616,2]
[358962827,1745591451440,-500.0,0.00035616,2]
[358962828,1745591451450,-500.0,0.00035616,2]
[358962829,1745591451460,-993.67,0.00035616,2]
[358962830,1745591451471,-501.19941665,0.00035616,2]
[358962831,1745591451481,-1111.82,0.00035616,2]
[358962832,1745591451491,-500.0,0.00035616,2]
[358962833,1745591451501,-500.0,0.00035616,2]
[358962834,1745591451511,-500.0,0.00035616,2]
[358962835,1745591451522,-1048.6,0.00035616,2]
[358962836,1745591451533,-500.0,0.00035616,2]
[358962837,1745591451543,-516.33929706,0.00035616,2]
[358962838,1745591451553,-500.0,0.00035616,2]
[358962839,1745591451563,-811.31,0.00035616,2]
[358962840,1745591451574,-1380.14,0.00035616,2]
[358962841,1745591451584,-500.0,0.00035616,2]
[358962842,1745591451595,-943.43,0.00035616,2]
[358962843,1745591451606,-675.8,0.00035616,2]
[358962844,1745591451616,-500.0,0.00035616,2]
[358962845,1745591451626,-1045.74,0.00035616,2]
[358962846,1745591451635,-1039.65,0.00035616,2]
[358962847,1745591451646,-1000.17,0.00035616,2]
[358962848,1745591451656,-502.71,0.00035616,2]
[358962849,1745591451666,-973.99,0.00035616,2]
[358962850,1745591451676,-500.0,0.00035616,2]
[358962851,1745591451686,-823.83,0.00035616,2]
[358962852,1745591451696,-500.0,0.00035616,2]
[358962853,1745591451706,-701.11,0.00035616,2]
[358962854,1745591451716,-500.0,0.00035616,2]
[358962855,1745591451726,-702.13,0.00035616,2]
[358962856,1745591451735,-846.81,0.00035616,2]
[358962857,1745591451758,-987.84,0.00035616,2]
[358962858,1745591451772,-500.0,0.00035616,2]
[358962859,1745591451783,-508.749187,0.00035616,2]
[358962860,1745591451793,-552.03,0.00035616,2]
[358962861,1745591451804,-892.08,0.00035616,2]
[358962862,1745591451815,-502.11,0.00035616,2]
[358962863,1745591451826,-647.02,0.00035616,2]
[358962864,1745591451837,-500.0,0.00035616,2]
[358962865,1745591451849,-500.0,0.00035616,2]
[358962866,1745591451860,-500.0,0.00035616,2]
[358962867,1745591451872,-971.58,0.00035616,2]
[358962868,1745591451883,-575.43,0.00035616,2]
[358962869,1745591451894,-500.0,0.00035616,2]
[358962870,1745591451906,-1114.87,0.00035616,2]
[358962871,1745591451916,-530.8658182,0.00035616,2]
[358962872,1745591451927,-26485.588499,0.00035616,2]
[358962873,1745591451938,-500.0,0.00035616,2]
[358962874,1745591451948,-500.0,0.00035616,2]
[358962875,1745591451959,-560.9618911,0.00035616,2]
[358962876,1745591451970,-1084.46,0.00035616,2]
[358962877,1745591451981,-500.0,0.00035616,2]
[358962878,1745591451991,-500.0,0.00035616,2]
[358962879,1745591452002,-2813.03,0.00035616,2]
[358962880,1745591452013,-500.0,0.00035616,2]
[358962881,1745591452027,-519.06923262,0.00035616,2]
[358962882,1745591452038,-500.0,0.00035616,2]
[358962883,1745591452049,-495.765966,0.00035616,2]
[358962884,1745591452060,-526.72028177,0.00035616,2]
[358962885,1745591452070,-500.0,0.00035616,2]
[358962886,1745591452080,-523.50803474,0.00035616,2]
[358962887,1745591452091,-500.0,0.00035616,2]
[358962888,1745591452101,-1031.5,0.00035616,2]
[358962889,1745591452111,-500.0,0.00035616,2]
[358962890,1745591452121,-984.18,0.00035616,2]
[358962891,1745591452132,-500.0,0.00035616,2]
[358962892,1745591452142,-1849.08,0.00035616,2]
[358962893,1745591452152,-500.0,0.00035616,2]
[358962894,1745591452163,-1002.14,0.00035616,2]
[358962895,1745591452173,-514.81597838,0.00035616,2]
[358962896,1745591452189,-1975.78,0.00035616,2]
[358962897,1745591452200,-1138.44,0.00035616,2]
[358962898,1745591452210,-500.0,0.00035616,2]
[358962899,1745591452221,-500.0,0.00035616,2]
[358962900,1745591452232,-690.59,0.00035616,2]
[358962901,1745591452245,-500.0,0.00035616,2]
[358962902,1745591452255,-1437.26,0.00035616,2]
[358962903,1745591452272,-500.0,0.00035616,2]
[358962904,1745591452283,-491.07673,0.00035616,2]
[358962905,1745591452293,-500.0,0.00035616,2]
[358962906,1745591452708,-1066.16,0.00035616,2]
[358962907,1745591452731,-500.0,0.00035616,2]
[358962908,1745591452742,-750.52,0.00035616,2]
[358962909,1745591452753,-500.0,0.00035616,2]
[358962910,1745591452764,-580.09949709,0.00035616,2]
[358962911,1745591452777,-1868.71,0.00035616,2]
[358962912,1745591452787,-835.68,0.00035616,2]
[358962913,1745591452797,-926.98,0.00035616,2]
[358962914,1745591452807,-500.0,0.00035616,2]
[358962915,1745591452817,-2389.099834,0.00035616,2]
[358962916,1745591452826,-500.0,0.00035616,2]
[358962917,1745591452836,-947.88,0.00035616,2]
[358962918,1745591452846,-592.2357426,0.00035616,2]
[358962919,1745591452855,-500.0,0.00035616,2]
[358962920,1745591452865,-500.0,0.00035616,2]
[358962921,1745591452874,-500.0,0.00035616,2]
[358962922,1745591452884,-500.0,0.00035616,2]
[358962923,1745591452893,-500.0,0.00035616,2]
[358962924,1745591452903,-4861.69,0.00035616,2]
[358962925,1745591452914,-714.69,0.00035616,2]
[358962926,1745591452926,-692.33,0.00035616,2]
[358962927,1745591452939,-958.41,0.00035616,2]
[358962928,1745591452949,-500.0,0.00035616,2]
[358962929,1745591452959,-644.39,0.00035616,2]
[358962930,1745591452968,-500.0,0.00035616,2]
[358962931,1745591452978,-500.0,0.00035616,2]
[358962932,1745591452988,-500.0,0.00035616,2]
[358962933,1745591452998,-618.99826618,0.00035616,2]
[358962934,1745591453008,-1143.88,0.00035616,2]
[358962935,1745591453021,-786.88,0.00035616,2]
[358962936,1745591453031,-5365.49,0.00035616,2]
[358962937,1745591453041,-528.69857189,0.00035616,2]
[358962938,1745591453051,-500.0,0.00035616,2]
[358962939,1745591453061,-500.0,0.00035616,2]
[358962940,1745591453071,-513.38316402,0.00035616,2]
[358962941,1745591453081,-873.59,0.00035616,2]
[358962942,1745591453090,-500.0,0.00035616,2]
[358962943,1745591453100,-1280.98,0.00035616,2]
[358962944,1745591453110,-500.0,0.00035616,2]
[358962945,1745591453120,-560.66,0.00035616,2]
[358962946,1745591453129,-523.65395542,0.00035616,2]
[358962947,1745591453139,-500.0,0.00035616,2]
[358962948,1745591453150,-27393.993025,0.00035616,2]
[358962949,1745591453159,-518.19,0.00035616,2]
[358962950,1745591453169,-500.0,0.00035616,2]
[358962951,1745591453179,-882.03,0.00035616,2]
[358962952,1745591453188,-542.59400762,0.00035616,2]
[358962953,1745591453197,-500.0,0.00035616,2]
[358962954,1745591453207,-537.02131556,0.00035616,2]
[358962955,1745591453218,-500.0,0.00035616,2]
[358962956,1745591453229,-500.0,0.00035616,2]
[358962957,1745591453239,-500.0,0.00035616,2]
[358962958,1745591453251,-500.0,0.00035616,2]
[358962959,1745591453261,-541.38962761,0.00035616,2]
[358962960,1745591453277,-945.77,0.00035616,2]
[358962961,1745591453287,-500.0,0.00035616,2]
[358962962,1745591453297,-529.71838469,0.00035616,2]
[358962963,1745591453307,-532.42338561,0.00035616,2]
[358962964,1745591453317,-500.0,0.00035616,2]